[Event "Early-Titled-Tuesday-Blitz-May-28-2024"]
[Site "Chess.com"]
[Date "2024.05.28"]
[Round "6"]
[White "rasmussvane"]
[Black "Dolphin_2010"]
[Result "1-0"]
[WhiteElo "2957"]
[BlackElo "2761"]
[TimeControl "180+1"]
[EndTime "9:08:41 PDT"]
[Termination "rasmussvane won on time"]

1. Nf3 {[%clk 0:03:00.9]} 1... d5 {[%clk 0:02:52.2]} 2. g3 {[%clk 0:03:00.2]}
2... Bg4 {[%clk 0:02:48.4]} 3. Bg2 {[%clk 0:03:00.4]} 3... Bxf3 {[%clk
0:02:47.4]} 4. Bxf3 {[%clk 0:03:01.3]} 4... c6 {[%clk 0:02:48]} 5. O-O {[%clk
0:03:00.9]} 5... e6 {[%clk 0:02:46.9]} 6. d3 {[%clk 0:02:56.7]} 6... Nd7 {[%clk
0:02:47.3]} 7. e4 {[%clk 0:02:56.6]} 7... Bd6 {[%clk 0:02:45.6]} 8. Nd2 {[%clk
0:02:54.4]} 8... Ne7 {[%clk 0:02:45.4]} 9. d4 {[%clk 0:02:50.1]} 9... O-O {[%clk
0:02:44.8]} 10. c4 {[%clk 0:02:49]} 10... dxe4 {[%clk 0:02:42.8]} 11. Nxe4
{[%clk 0:02:48]} 11... Bc7 {[%clk 0:02:43]} 12. Bd2 {[%clk 0:02:45.6]} 12... Nb6
{[%clk 0:02:17.9]} 13. Qb3 {[%clk 0:01:38.2]} 13... Qxd4 {[%clk 0:02:02.7]} 14.
Rac1 {[%clk 0:01:28.5]} 14... Nf5 {[%clk 0:01:25.8]} 15. Rfd1 {[%clk 0:01:22.2]}
15... Qd8 {[%clk 0:00:38.1]} 16. Bb4 {[%clk 0:01:20.7]} 16... Nd4 {[%clk
0:00:21]} 17. Qe3 {[%clk 0:01:20.2]} 17... e5 {[%clk 0:00:19.4]} 18. Bxf8 {[%clk
0:01:20.2]} 18... Qxf8 {[%clk 0:00:19.5]} 19. Bg2 {[%clk 0:01:04.8]} 19... Rd8
{[%clk 0:00:17.4]} 20. a3 {[%clk 0:00:52]} 20... h6 {[%clk 0:00:12.6]} 21. Nd2
{[%clk 0:00:48.7]} 21... Na4 {[%clk 0:00:07.5]} 22. Rb1 {[%clk 0:00:43.4]} 22...
Nc5 {[%clk 0:00:05.7]} 23. Nf3 {[%clk 0:00:40.2]} 23... Nce6 {[%clk 0:00:05.8]}
24. Nxe5 {[%clk 0:00:33]} 24... Re8 {[%clk 0:00:06.1]} 25. Nf3 {[%clk
0:00:11.2]} 25... Nf4 {[%clk 0:00:04.9]} 26. Qd2 {[%clk 0:00:11.7]} 26... Nxg2
{[%clk 0:00:01.3]} 27. Qxd4 {[%clk 0:00:10.3]} 27... Ne3 {[%clk 0:00:01]} 28.
fxe3 {[%clk 0:00:09.3]} 28... Bb6 {[%clk 0:00:01.8]} 29. Qd6 {[%clk 0:00:07]}
29... Bxe3+ {[%clk 0:00:01.9]} 30. Kf1 {[%clk 0:00:05.4]} 30... Re7 {[%clk
0:00:02.8]} 31. Qd8 {[%clk 0:00:05.2]} 31... Re8 {[%clk 0:00:03]} 32. Qd6 {[%clk
0:00:05.4]} 32... Re7 {[%clk 0:00:03.7]} 33. Re1 {[%clk 0:00:06]} 33... Bc5
{[%clk 0:00:01.3]} 34. Qf4 {[%clk 0:00:04.8]} 34... Qc8 {[%clk 0:00:01.5]} 35.
Rxe7 {[%clk 0:00:04.7]} 35... Qh3+ {[%clk 0:00:02.4]} 36. Ke2 {[%clk 0:00:04.8]}
36... Bxe7 {[%clk 0:00:03.1]} 37. Qe3 {[%clk 0:00:05.3]} 37... Bf6 {[%clk
0:00:02.1]} 38. Rd1 {[%clk 0:00:05.8]} 38... Kh7 {[%clk 0:00:01.3]} 39. Qe4+
{[%clk 0:00:06]} 39... g6 {[%clk 0:00:01.8]} 40. b4 {[%clk 0:00:06.2]} 40... Kg7
{[%clk 0:00:02.1]} 41. Kf2 {[%clk 0:00:05.8]} 41... a5 {[%clk 0:00:01.7]} 42.
Kg1 {[%clk 0:00:06]} 42... Qh5 {[%clk 0:00:01.3]} 43. c5 {[%clk 0:00:05.8]}
43... axb4 {[%clk 0:00:01.6]} 44. axb4 {[%clk 0:00:06.6]} 44... Qh3 {[%clk
0:00:01.6]} 45. Rf1 {[%clk 0:00:06.9]} 45... h5 {[%clk 0:00:01.5]} 46. Rf2
{[%clk 0:00:07.2]} 46... Qd7 {[%clk 0:00:01.5]} 47. Kg2 {[%clk 0:00:07.2]} 47...
Qd8 {[%clk 0:00:01]} 48. Ne5 {[%clk 0:00:07]} 48... Qe7 {[%clk 0:00:01.2]} 49.
Re2 {[%clk 0:00:07]} 49... Qe6 {[%clk 0:00:01.3]} 50. Qf4 {[%clk 0:00:07]} 50...
Qd5+ {[%clk 0:00:01.5]} 51. Qf3 {[%clk 0:00:07.5]} 51... Qd4 {[%clk 0:00:01.3]}
52. Nd3 {[%clk 0:00:06.9]} 52... Qc4 {[%clk 0:00:01.2]} 53. Rf2 {[%clk
0:00:07.2]} 53... Bd4 {[%clk 0:00:01.5]} 54. Re2 {[%clk 0:00:06.7]} 54... h4
{[%clk 0:00:01.4]} 55. Qe4 {[%clk 0:00:06.9]} 55... hxg3 {[%clk 0:00:01]} 56.
hxg3 {[%clk 0:00:07.3]} 56... Qc3 {[%clk 0:00:01.6]} 57. Qf3 {[%clk 0:00:06.9]}
57... Bf6 {[%clk 0:00:01.7]} 58. Re4 {[%clk 0:00:05.2]} 58... Qc2+ {[%clk
0:00:01.9]} 59. Re2 {[%clk 0:00:05.8]} 59... Qc3 {[%clk 0:00:02.3]} 60. Rf2
{[%clk 0:00:06.5]} 60... Bd4 {[%clk 0:00:01.8]} 61. Qxf7+ {[%clk 0:00:06.5]}
61... Kh6 {[%clk 0:00:02.7]} 62. Rf3 {[%clk 0:00:05.9]} 62... Qc2+ {[%clk
0:00:02.2]} 63. Nf2 {[%clk 0:00:06.4]} 63... Qb2 {[%clk 0:00:01.1]} 64. Qf4+
{[%clk 0:00:06.5]} 64... Kh7 {[%clk 0:00:01]} 65. Qc7+ {[%clk 0:00:06.7]} 65...
Kh6 {[%clk 0:00:01.9]} 66. Rf7 {[%clk 0:00:06.9]} 66... Be3 {[%clk 0:00:01]} 67.
Rh7+ {[%clk 0:00:06.6]} 67... Kg5 {[%clk 0:00:01.7]} 68. Qe7+ {[%clk 0:00:07]}
68... Kf5 {[%clk 0:00:02.6]} 69. Rf7+ {[%clk 0:00:07.2]} 69... Qf6 {[%clk
0:00:01]} 70. Rxf6+ {[%clk 0:00:07.2]} 1-0

[Event "Early-Titled-Tuesday-Blitz-May-28-2024"]
[Site "Chess.com"]
[Date "2024.05.28"]
[Round "6"]
[White "Quattroporte300"]
[Black "Mesa_1"]
[Result "1/2-1/2"]
[WhiteElo "2397"]
[BlackElo "2572"]
[TimeControl "180+1"]
[EndTime "9:08:41 PDT"]
[Termination "Game drawn by stalemate"]

1. e4 {[%clk 0:03:00.9]} 1... c5 {[%clk 0:02:57.4]} 2. Nc3 {[%clk 0:03:00.3]}
2... e6 {[%clk 0:02:56.1]} 3. g3 {[%clk 0:03:00]} 3... d5 {[%clk 0:02:54.4]} 4.
exd5 {[%clk 0:02:59]} 4... exd5 {[%clk 0:02:55.3]} 5. d4 {[%clk 0:02:57.8]} 5...
cxd4 {[%clk 0:02:53.1]} 6. Qxd4 {[%clk 0:02:57.4]} 6... Nc6 {[%clk 0:02:53.1]}
7. Qxd5 {[%clk 0:02:49.6]} 7... Qe7+ {[%clk 0:02:52.6]} 8. Be2 {[%clk 0:02:45]}
8... Nf6 {[%clk 0:02:52.1]} 9. Qd1 {[%clk 0:02:37.9]} 9... Bg4 {[%clk
0:02:47.1]} 10. h3 {[%clk 0:02:30.8]} 10... Rd8 {[%clk 0:02:47.2]} 11. Bd2
{[%clk 0:02:31]} 11... Bf5 {[%clk 0:02:14.1]} 12. Nf3 {[%clk 0:02:23.4]} 12...
Ne4 {[%clk 0:02:03.5]} 13. Nxe4 {[%clk 0:02:04.8]} 13... Qxe4 {[%clk 0:02:04.4]}
14. c3 {[%clk 0:02:01.2]} 14... Bc5 {[%clk 0:02:00.4]} 15. Kf1 {[%clk
0:01:56.9]} 15... O-O {[%clk 0:01:57.2]} 16. Kg2 {[%clk 0:01:52.4]} 16... Rfe8
{[%clk 0:01:57.7]} 17. Re1 {[%clk 0:01:49.7]} 17... Qe6 {[%clk 0:01:58.1]} 18.
Ng5 {[%clk 0:01:13.4]} 18... Qg6 {[%clk 0:01:50.4]} 19. Bc4 {[%clk 0:01:09.1]}
19... Rf8 {[%clk 0:01:36.6]} 20. Qe2 {[%clk 0:00:58.7]} 20... h6 {[%clk
0:01:34.5]} 21. Nf3 {[%clk 0:00:57.6]} 21... Qf6 {[%clk 0:01:28.1]} 22. Bf4
{[%clk 0:00:52.4]} 22... g5 {[%clk 0:01:21.6]} 23. Be5 {[%clk 0:00:51.9]} 23...
Nxe5 {[%clk 0:01:20.4]} 24. Qxe5 {[%clk 0:00:51.8]} 24... Bxh3+ {[%clk
0:00:49.6]} 25. Kxh3 {[%clk 0:00:51.4]} 25... Qxf3 {[%clk 0:00:46.2]} 26. Qxc5
{[%clk 0:00:51.3]} 26... Rd2 {[%clk 0:00:40.4]} 27. Rf1 {[%clk 0:00:30.3]} 27...
Re8 {[%clk 0:00:29.6]} 28. Kh2 {[%clk 0:00:20.4]} 28... Kg7 {[%clk 0:00:20]} 29.
Kg1 {[%clk 0:00:16.3]} 29... Red8 {[%clk 0:00:15]} 30. Rae1 {[%clk 0:00:14]}
30... R8d6 {[%clk 0:00:13.9]} 31. Re7 {[%clk 0:00:12.8]} 31... Rf6 {[%clk
0:00:13.1]} 32. Qe3 {[%clk 0:00:10.9]} 32... Rxb2 {[%clk 0:00:08.5]} 33. Qxf3
{[%clk 0:00:10.4]} 33... Rxf3 {[%clk 0:00:08.6]} 34. Kg2 {[%clk 0:00:09.6]}
34... Rf6 {[%clk 0:00:08.3]} 35. Bd5 {[%clk 0:00:07.6]} 35... b5 {[%clk
0:00:08.2]} 36. Rxa7 {[%clk 0:00:05.7]} 36... Rc2 {[%clk 0:00:07.3]} 37. Rc7
{[%clk 0:00:05.5]} 37... b4 {[%clk 0:00:07]} 38. c4 {[%clk 0:00:06]} 38... Rxa2
{[%clk 0:00:07.2]} 39. c5 {[%clk 0:00:06.3]} 39... Rd2 {[%clk 0:00:07.9]} 40.
Bf3 {[%clk 0:00:05.6]} 40... b3 {[%clk 0:00:07.1]} 41. c6 {[%clk 0:00:04]} 41...
b2 {[%clk 0:00:07.7]} 42. Rb7 {[%clk 0:00:04.5]} 42... Rc2 {[%clk 0:00:07.8]}
43. Rb1 {[%clk 0:00:04.6]} 43... g4 {[%clk 0:00:06.9]} 44. Bd5 {[%clk
0:00:04.7]} 44... Rfxf2+ {[%clk 0:00:06.5]} 45. Kg1 {[%clk 0:00:04.9]} 45...
Rc1+ {[%clk 0:00:06.2]} 46. Kxf2 {[%clk 0:00:04.1]} 46... Rxb1 {[%clk
0:00:06.3]} 47. c7 {[%clk 0:00:03.8]} 47... Rc1 {[%clk 0:00:02.9]} 48. Rxb2
{[%clk 0:00:04.2]} 48... Rxc7 {[%clk 0:00:02.7]} 49. Re2 {[%clk 0:00:04.9]}
49... f6 {[%clk 0:00:03]} 50. Ke3 {[%clk 0:00:05]} 50... Rc5 {[%clk 0:00:03.7]}
51. Be4 {[%clk 0:00:04.8]} 51... f5 {[%clk 0:00:02.9]} 52. Bd3 {[%clk
0:00:04.5]} 52... Kf6 {[%clk 0:00:03.3]} 53. Kf4 {[%clk 0:00:04.5]} 53... Ra5
{[%clk 0:00:03]} 54. Rc2 {[%clk 0:00:04.3]} 54... Ra4+ {[%clk 0:00:03.3]} 55.
Rc4 {[%clk 0:00:04.8]} 55... Rxc4+ {[%clk 0:00:01.3]} 56. Bxc4 {[%clk
0:00:04.9]} 56... h5 {[%clk 0:00:02.2]} 57. Bf1 {[%clk 0:00:04.2]} 57... h4
{[%clk 0:00:03.1]} 58. gxh4 {[%clk 0:00:04.5]} 58... Kg7 {[%clk 0:00:03.6]} 59.
Kxf5 {[%clk 0:00:04.3]} 59... g3 {[%clk 0:00:04.5]} 60. Kg4 {[%clk 0:00:04.6]}
60... Kh8 {[%clk 0:00:05.4]} 61. Bg2 {[%clk 0:00:04.7]} 61... Kg8 {[%clk
0:00:06.3]} 62. Kg5 {[%clk 0:00:05.2]} 62... Kh8 {[%clk 0:00:07.2]} 63. Kh6
{[%clk 0:00:05.7]} 63... Kg8 {[%clk 0:00:08.1]} 64. h5 {[%clk 0:00:06.1]} 64...
Kh8 {[%clk 0:00:08.4]} 65. Kg6 {[%clk 0:00:06.8]} 65... Kg8 {[%clk 0:00:09.3]}
66. h6 {[%clk 0:00:07.1]} 66... Kh8 {[%clk 0:00:10.2]} 67. Kh5 {[%clk
0:00:01.9]} 67... Kg8 {[%clk 0:00:09.8]} 68. Bd5+ {[%clk 0:00:01.3]} 68... Kh8
{[%clk 0:00:10.7]} 69. Kg4 {[%clk 0:00:01.5]} 69... g2 {[%clk 0:00:11.6]} 70.
Bxg2 {[%clk 0:00:01.6]} 70... Kh7 {[%clk 0:00:12.3]} 71. Kh5 {[%clk 0:00:02]}
71... Kh8 {[%clk 0:00:13.2]} 72. Be4 {[%clk 0:00:02.2]} 72... Kg8 {[%clk
0:00:14.1]} 73. Kg6 {[%clk 0:00:02.8]} 73... Kh8 {[%clk 0:00:15]} 74. h7 {[%clk
0:00:03.4]} 1/2-1/2

[Event "Early-Titled-Tuesday-Blitz-May-28-2024"]
[Site "Chess.com"]
[Date "2024.05.28"]
[Round "6"]
[White "JoliyRoger"]
[Black "klercaku"]
[Result "1-0"]
[WhiteElo "2448"]
[BlackElo "2286"]
[TimeControl "180+1"]
[EndTime "9:08:41 PDT"]
[Termination "JoliyRoger won by checkmate"]

1. d4 {[%clk 0:02:59.7]} 1... d5 {[%clk 0:03:00.1]} 2. c4 {[%clk 0:03:00.2]}
2... e6 {[%clk 0:02:58.9]} 3. Nc3 {[%clk 0:03:00.8]} 3... Nf6 {[%clk 0:02:59.3]}
4. Bg5 {[%clk 0:03:01.1]} 4... Nbd7 {[%clk 0:02:59]} 5. e3 {[%clk 0:02:59.8]}
5... Be7 {[%clk 0:02:57.1]} 6. Nf3 {[%clk 0:03:00.1]} 6... h6 {[%clk 0:02:56.4]}
7. Bh4 {[%clk 0:02:59.6]} 7... O-O {[%clk 0:02:57]} 8. Qc2 {[%clk 0:03:00.2]}
8... c6 {[%clk 0:02:54.9]} 9. a3 {[%clk 0:02:59.2]} 9... Re8 {[%clk 0:02:53.8]}
10. Bd3 {[%clk 0:02:59.4]} 10... dxc4 {[%clk 0:02:53.4]} 11. Bxc4 {[%clk
0:02:59.9]} 11... Nd5 {[%clk 0:02:52.3]} 12. Bg3 {[%clk 0:02:58.5]} 12... Bf6
{[%clk 0:02:48.3]} 13. O-O {[%clk 0:02:56.2]} 13... Nxc3 {[%clk 0:02:46.6]} 14.
bxc3 {[%clk 0:02:55.5]} 14... e5 {[%clk 0:02:46.7]} 15. Rad1 {[%clk 0:02:46]}
15... Qe7 {[%clk 0:02:41.3]} 16. Qa2 {[%clk 0:02:41.3]} 16... e4 {[%clk
0:02:28.4]} 17. Ne5 {[%clk 0:02:28.5]} 17... Bxe5 {[%clk 0:02:17.9]} 18. dxe5
{[%clk 0:02:27.9]} 18... a5 {[%clk 0:02:08]} 19. a4 {[%clk 0:02:26.4]} 19... Nb6
{[%clk 0:01:59.3]} 20. Bb3 {[%clk 0:02:26.7]} 20... Be6 {[%clk 0:01:58.9]} 21.
Rb1 {[%clk 0:02:15.6]} 21... Qc5 {[%clk 0:01:48.4]} 22. Bxe6 {[%clk 0:02:00.9]}
22... Rxe6 {[%clk 0:01:47.2]} 23. Qb3 {[%clk 0:02:00.6]} 23... Nc4 {[%clk
0:01:35.1]} 24. Qxb7 {[%clk 0:02:00.5]} 24... Rd8 {[%clk 0:01:24.8]} 25. Qc7
{[%clk 0:01:58.5]} 25... Rd3 {[%clk 0:01:14.9]} 26. Rb8+ {[%clk 0:01:51.4]}
26... Kh7 {[%clk 0:01:14.2]} 27. Qxf7 {[%clk 0:01:51.5]} 27... Qd5 {[%clk
0:00:58.8]} 28. h4 {[%clk 0:01:39.4]} 28... Nxe5 {[%clk 0:00:46.8]} 29. c4
{[%clk 0:00:44.9]} 29... Nxf7 {[%clk 0:00:34.8]} 30. cxd5 {[%clk 0:00:44.7]}
30... Rxd5 {[%clk 0:00:27.1]} 31. Rc1 {[%clk 0:00:27.8]} 31... Ne5 {[%clk
0:00:16.8]} 32. Rc8 {[%clk 0:00:20.3]} 32... Nd3 {[%clk 0:00:15.1]} 33. R1xc6
{[%clk 0:00:18.2]} 33... Rxc6 {[%clk 0:00:13.6]} 34. Rxc6 {[%clk 0:00:18.8]}
34... Nb2 {[%clk 0:00:10.1]} 35. Re6 {[%clk 0:00:19.3]} 35... Nxa4 {[%clk
0:00:08.9]} 36. Rxe4 {[%clk 0:00:20]} 36... Nc3 {[%clk 0:00:09.3]} 37. Rc4
{[%clk 0:00:20.4]} 37... Ne2+ {[%clk 0:00:04.6]} 38. Kh2 {[%clk 0:00:20.9]}
38... Nxg3 {[%clk 0:00:01.8]} 39. Kxg3 {[%clk 0:00:21.8]} 39... Kg6 {[%clk
0:00:01.8]} 40. e4 {[%clk 0:00:19.1]} 40... Rb5 {[%clk 0:00:02.2]} 41. Rc6+
{[%clk 0:00:18.8]} 41... Kf7 {[%clk 0:00:02.3]} 42. Ra6 {[%clk 0:00:19.1]} 42...
Re5 {[%clk 0:00:01.9]} 43. Kf4 {[%clk 0:00:18.5]} 43... Rb5 {[%clk 0:00:02.5]}
44. g4 {[%clk 0:00:18.8]} 44... Kg8 {[%clk 0:00:01.9]} 45. h5 {[%clk 0:00:19]}
45... Kf7 {[%clk 0:00:02.3]} 46. f3 {[%clk 0:00:19.3]} 46... Kg8 {[%clk
0:00:02.7]} 47. Ra7 {[%clk 0:00:19.5]} 47... Kh7 {[%clk 0:00:02.8]} 48. e5
{[%clk 0:00:19.6]} 48... Kg8 {[%clk 0:00:03.4]} 49. Kf5 {[%clk 0:00:20.1]} 49...
Kf8 {[%clk 0:00:03.2]} 50. f4 {[%clk 0:00:20.7]} 50... Kg8 {[%clk 0:00:02.9]}
51. g5 {[%clk 0:00:17.7]} 51... hxg5 {[%clk 0:00:02.9]} 52. Kxg5 {[%clk
0:00:16.3]} 52... Kf8 {[%clk 0:00:02.7]} 53. Ra8+ {[%clk 0:00:15]} 53... Kf7
{[%clk 0:00:02.9]} 54. Ra7+ {[%clk 0:00:15.4]} 54... Kf8 {[%clk 0:00:03.2]} 55.
Kg6 {[%clk 0:00:14.8]} 55... Rb6+ {[%clk 0:00:03.1]} 56. Kf5 {[%clk 0:00:15.5]}
56... Rb5 {[%clk 0:00:03]} 57. Kg5 {[%clk 0:00:15]} 57... Kg8 {[%clk 0:00:02.5]}
58. h6 {[%clk 0:00:12.8]} 58... gxh6+ {[%clk 0:00:02.4]} 59. Kxh6 {[%clk
0:00:13.5]} 59... Rb4 {[%clk 0:00:02.3]} 60. Kg6 {[%clk 0:00:10.7]} 60... Kf8
{[%clk 0:00:01.5]} 61. Kf5 {[%clk 0:00:10.3]} 61... a4 {[%clk 0:00:01.9]} 62. e6
{[%clk 0:00:07.8]} 62... Rb5+ {[%clk 0:00:01]} 63. Kf6 {[%clk 0:00:08.1]} 63...
Ke8 {[%clk 0:00:01.2]} 64. Ra8+ {[%clk 0:00:07.7]} 64... Rb8 {[%clk 0:00:01]}
65. Rxb8# {[%clk 0:00:08.1]} 1-0

[Event "Early-Titled-Tuesday-Blitz-May-28-2024"]
[Site "Chess.com"]
[Date "2024.05.28"]
[Round "6"]
[White "VacheH009"]
[Black "RandomNoob04"]
[Result "0-1"]
[WhiteElo "2541"]
[BlackElo "2771"]
[TimeControl "180+1"]
[EndTime "9:08:48 PDT"]
[Termination "RandomNoob04 won by checkmate"]

1. d4 {[%clk 0:02:59.5]} 1... Nf6 {[%clk 0:03:00]} 2. Nf3 {[%clk 0:02:56.8]}
2... c5 {[%clk 0:03:00.1]} 3. d5 {[%clk 0:02:50]} 3... b5 {[%clk 0:03:00.4]} 4.
Bg5 {[%clk 0:02:48.6]} 4... Qb6 {[%clk 0:03:00.4]} 5. a4 {[%clk 0:02:46.7]} 5...
b4 {[%clk 0:03:00.5]} 6. e3 {[%clk 0:02:33.3]} 6... g6 {[%clk 0:02:58.4]} 7. a5
{[%clk 0:01:58.5]} 7... Qd6 {[%clk 0:02:57.7]} 8. Bc4 {[%clk 0:01:57.8]} 8...
Qc7 {[%clk 0:02:35.2]} 9. Bxf6 {[%clk 0:01:53.3]} 9... exf6 {[%clk 0:02:34.9]}
10. O-O {[%clk 0:01:52]} 10... d6 {[%clk 0:02:33.5]} 11. Nbd2 {[%clk 0:01:51.7]}
11... f5 {[%clk 0:02:28.9]} 12. Bd3 {[%clk 0:01:29.3]} 12... Bg7 {[%clk
0:02:28.2]} 13. Nc4 {[%clk 0:01:28.8]} 13... O-O {[%clk 0:02:27.6]} 14. e4
{[%clk 0:01:17.8]} 14... fxe4 {[%clk 0:02:25.1]} 15. Bxe4 {[%clk 0:01:18.7]}
15... Ba6 {[%clk 0:02:25.2]} 16. Bd3 {[%clk 0:01:16.6]} 16... Bxc4 {[%clk
0:02:22.8]} 17. Bxc4 {[%clk 0:01:17.3]} 17... Bxb2 {[%clk 0:02:23.4]} 18. Ra2
{[%clk 0:01:15.1]} 18... Bg7 {[%clk 0:02:24]} 19. Ne1 {[%clk 0:00:53.6]} 19...
a6 {[%clk 0:02:21]} 20. Nd3 {[%clk 0:00:53.3]} 20... Re8 {[%clk 0:02:21.2]} 21.
f4 {[%clk 0:00:47.2]} 21... Nd7 {[%clk 0:02:15.9]} 22. Kh1 {[%clk 0:00:45.2]}
22... f5 {[%clk 0:02:09.9]} 23. Ne1 {[%clk 0:00:35.9]} 23... Nf6 {[%clk
0:02:08.3]} 24. Nf3 {[%clk 0:00:33.9]} 24... Ne4 {[%clk 0:02:08.3]} 25. Qd3
{[%clk 0:00:32.6]} 25... Nc3 {[%clk 0:01:36.4]} 26. Raa1 {[%clk 0:00:31]} 26...
Ne2 {[%clk 0:01:36.9]} 27. Rae1 {[%clk 0:00:23.3]} 27... Nxf4 {[%clk 0:01:37.1]}
28. Rxe8+ {[%clk 0:00:21.1]} 28... Rxe8 {[%clk 0:01:38]} 29. Qd2 {[%clk
0:00:21.6]} 29... Nh5 {[%clk 0:01:36.7]} 30. Ng5 {[%clk 0:00:18.4]} 30... Qxa5
{[%clk 0:01:28.8]} 31. Ne6 {[%clk 0:00:18.8]} 31... Bf6 {[%clk 0:01:19.4]} 32.
g4 {[%clk 0:00:09.5]} 32... fxg4 {[%clk 0:01:08.7]} 33. Qh6 {[%clk 0:00:02.8]}
33... Bg7 {[%clk 0:00:44.9]} 34. Qg5 {[%clk 0:00:03.2]} 34... Qa3 {[%clk
0:00:38.3]} 35. Qxg4 {[%clk 0:00:01.7]} 35... Qc3 {[%clk 0:00:29.9]} 36. Nc7
{[%clk 0:00:01.7]} 36... Rf8 {[%clk 0:00:14.2]} 37. Qe6+ {[%clk 0:00:01.7]}
37... Kh8 {[%clk 0:00:14.5]} 38. Rxf8+ {[%clk 0:00:02.2]} 38... Bxf8 {[%clk
0:00:15.4]} 39. Bxa6 {[%clk 0:00:01.8]} 39... Qf3+ {[%clk 0:00:13.1]} 40. Kg1
{[%clk 0:00:01.7]} 40... Qd1+ {[%clk 0:00:09.2]} 41. Kf2 {[%clk 0:00:01.4]}
41... Qxc2+ {[%clk 0:00:09.8]} 42. Kf3 {[%clk 0:00:01.9]} 42... Qf5+ {[%clk
0:00:10.3]} 43. Qxf5 {[%clk 0:00:01.6]} 43... gxf5 {[%clk 0:00:11.2]} 44. Ne6
{[%clk 0:00:01.5]} 44... Be7 {[%clk 0:00:10.9]} 45. Bc4 {[%clk 0:00:01.3]} 45...
Kg8 {[%clk 0:00:10.2]} 46. Ke2 {[%clk 0:00:01]} 46... Kf7 {[%clk 0:00:10.1]} 47.
Kf3 {[%clk 0:00:01.9]} 47... Kf6 {[%clk 0:00:10.5]} 48. Nc7 {[%clk 0:00:02.2]}
48... Ke5 {[%clk 0:00:10.5]} 49. Nb5 {[%clk 0:00:02.4]} 49... Nf6 {[%clk
0:00:10.7]} 50. Na7 {[%clk 0:00:02.6]} 50... Kd4 {[%clk 0:00:09.8]} 51. Ba2
{[%clk 0:00:02.8]} 51... Kc3 {[%clk 0:00:09.8]} 52. Nc6 {[%clk 0:00:03.6]} 52...
Bf8 {[%clk 0:00:10.1]} 53. Bb1 {[%clk 0:00:03.9]} 53... Nxd5 {[%clk 0:00:09.5]}
54. Bxf5 {[%clk 0:00:04.6]} 54... b3 {[%clk 0:00:09.8]} 55. Na5 {[%clk
0:00:03.8]} 55... b2 {[%clk 0:00:09.9]} 56. Ke2 {[%clk 0:00:04.3]} 56... Ne7
{[%clk 0:00:08.8]} 57. Bb1 {[%clk 0:00:04.1]} 57... d5 {[%clk 0:00:09.2]} 58.
Nb7 {[%clk 0:00:04.5]} 58... c4 {[%clk 0:00:07.8]} 59. Nd6 {[%clk 0:00:05.1]}
59... d4 {[%clk 0:00:05.7]} 60. Nb5+ {[%clk 0:00:05.2]} 60... Kb4 {[%clk
0:00:05.6]} 61. Nxd4 {[%clk 0:00:06.1]} 61... Nd5 {[%clk 0:00:05.2]} 62. Nc6+
{[%clk 0:00:05.7]} 62... Kc5 {[%clk 0:00:05.3]} 63. Ne5 {[%clk 0:00:02]} 63...
Nc3+ {[%clk 0:00:05.7]} 64. Kd2 {[%clk 0:00:02.7]} 64... Nxb1+ {[%clk
0:00:06.6]} 65. Kc2 {[%clk 0:00:03]} 65... Na3+ {[%clk 0:00:07.3]} 66. Kxb2
{[%clk 0:00:03.3]} 66... Bg7 {[%clk 0:00:07.9]} 67. Kxa3 {[%clk 0:00:04]} 67...
Bxe5 {[%clk 0:00:08.8]} 68. Ka2 {[%clk 0:00:04.4]} 68... c3 {[%clk 0:00:09.6]}
69. Kb1 {[%clk 0:00:05.3]} 69... Kc4 {[%clk 0:00:10.5]} 70. Kc2 {[%clk
0:00:05.1]} 70... Kb4 {[%clk 0:00:11]} 71. Kc1 {[%clk 0:00:06]} 71... Kb3 {[%clk
0:00:11.2]} 72. h4 {[%clk 0:00:06.8]} 72... c2 {[%clk 0:00:11.7]} 73. h5 {[%clk
0:00:07.7]} 73... Bf4# {[%clk 0:00:12.1]} 0-1